Cogmind - Beta 15 *** ADVENTURER MODE // 2025.05.12 @ 21:12:38 Player: Jack Result: Self-destructed Performance ------------- Evolutions (1) 500 Regions Visited (5) 1000 Robots Destroyed (14) 70 Value Destroyed (245) 245 Prototype IDs (0) 0 Alien Tech Used (0) 0 Bonus (0) 0 TOTAL SCORE: 1815 Bonus ------- None Cogmind --------- Core Integrity 333/400 Matter 145/300 Energy 98/100 System Corruption 0% Temperature Cool (6) Movement Flying (34) Location -9/Exiles Parts ------- > --- POWER (1) -------- (None) > --- PROPULSION (3) --- Flight Unit Flight Unit Flight Unit > --- UTILITY (3) ------ (None) > --- WEAPON (2) ------- (None) > --- INVENTORY (5) ---- Light Ion Engine Flight Unit Rocket Launcher Peak State ------------ > --- POWER ------------ (None) > --- PROPULSION ------- Flight Unit Flight Unit Flight Unit > --- UTILITY ---------- (None) > --- WEAPON ----------- Rocket Launcher > --- INVENTORY -------- Light Ion Engine [Rating: 5] Favorites ----------- Power None Propulsion Flight Unit Flight Unit Flight Unit Utility None Weapon Rocket Launcher Launcher Rocket Launcher Build | -11 -10 -10 -9 -9 -9 ------- Run | Yrd Mat Min Mat Min Exi Slots Evolved 2 | . . . 2 . . Power . | . . . . . . Propulsion 1 | . . . 1 . . Utility 1 | . . . 1 . . Weapon . | . . . . . . Parts Attached 4 | . . 3 1 . . Power . | . . . . . . Engine . | . . . . . . Core . | . . . . . . Reactor . | . . . . . . Propulsion 3 | . . 2 1 . . Treads . | . . . . . . Leg . | . . . . . . Wheel . | . . . . . . Hover . | . . . . . . Flight 3 | . . 2 1 . . Utility . | . . . . . . Device . | . . . . . . Storage . | . . . . . . Processor . | . . . . . . Hackware . | . . . . . . Protection . | . . . . . . Artifact . | . . . . . . Weapon 1 | . . 1 . . . Energy Gun . | . . . . . . Energy Cannon . | . . . . . . Ballistic Gun . | . . . . . . Ballistic Cannon . | . . . . . . Launcher 1 | . . 1 . . . Special Weapon . | . . . . . . Impact Weapon . | . . . . . . Slashing Weapon . | . . . . . . Piercing Weapon . | . . . . . . Special Melee Weapon . | . . . . . . Unidentified Prototypes . | . . . . . . Parts Lost . | . . . . . . Power . | . . . . . . Propulsion . | . . . . . . Utility . | . . . . . . Weapon . | . . . . . . Highest Loss Streak . | . . . . . . To Critical Strikes . | . . . . . . Average Backups 1 | . . . 1 2 3 Power . | . . . 1 1 1 Propulsion . | . . . . . 1 Utility . | . . . . . . Weapon . | . . . . . 1 Tool/Special . | . . . . . . Unused Backups 2 | . . . . . 2 Power 1 | . . . . . 1 Propulsion 1 | . . . . . 1 Utility . | . . . . . . Weapon . | . . . . . . Tool/Special . | . . . . . . Average Slot Usage (%) 25 | . . 15 30 34 33 Flight 23 | . . 12 28 33 33 Launcher 1 | . . 3 2 1 . Peak Build Rating 5 | . . 4 4 5 3 Average Rating 2 | . . 1 2 3 3 On Entrance 1 | . . . 4 3 3 Naked Turns 66 | . 32 34 . . . Heaviest Build 4 | . . 4 4 4 . Greatest Support 12 | 3 3 8 12 12 12 Greatest Overweight (x) . | . . . . . . Average Overweight (x) . | . . . . . . Largest Inventory Capacity 5 | 5 5 5 5 5 5 Average Capacity 5 | 5 5 5 5 5 5 Most Carried 3 | . . 2 2 3 3 Average Carried 1 | . . . 1 2 3 Final Capacity 5 | 5 5 5 5 5 5 Final Carried 3 | . . 1 2 3 3 Class Distribution -------------------- 100% | Mutant Dominant Class ---------------- Mutant | -10/Materials Mutant | -10/Mines Mutant | -9/Materials Mutant | -9/Mines Mutant | -9/Exiles Resources | -11 -10 -10 -9 -9 -9 ----------- Run | Yrd Mat Min Mat Min Exi Matter Collected 227 | 182 . 38 . 7 . Remotely . | . . . . . . Salvage Created 150 | . . 91 . 59 . Parts 20 | . . 9 . 11 . Haulers Intercepted . | . . . . . . Recyclers Shooed . | . . . . . . Parts Field Recycled . | . . . . . . Retrieved Matter . | . . . . . . Parts Self-Destructed . | . . . . . . Prevented . | . . . . . . Kills | -11 -10 -10 -9 -9 -9 ------- Run | Yrd Mat Min Mat Min Exi Combat Hostiles Destroyed 14 | . . 5 . 9 . AOE 14 | . . 5 . 9 . Classes Destroyed 2 | . . 2 . . . Swarmer 11 | . . 2 . 9 . Grunt 3 | . . 3 . . . Best Kill Streak 3 | . . 3 . 3 . Combat Bots Only 3 | . . 3 . 3 . Max Kills in Single Turn 3 | . . 2 . 3 . Gunslinging . | . . . . . . Exploded 3 | . . 2 . 3 . Melee . | . . . . . . Uniques/NPCs Destroyed . | . . . . . . Combat | -11 -10 -10 -9 -9 -9 -------- Run | Yrd Mat Min Mat Min Exi Hostile Shots Fired 36 | . . 14 9 13 . Missed 15 | . . 3 7 5 . Hits 21 | . . 11 2 8 . Projectile 21 | . . 11 2 8 . Damage Taken 178 | . . 79 24 75 . Core 123 | . . 56 12 55 . Absorbed by Shields . | . . . . . . Ignored by Resistances 56 | . . 26 7 23 . Core Remaining (%) 88 | 100 . 77 . . . Volleys Fired 10 | . . 4 . 6 . Largest 1 | . . 1 . 1 . Hottest 33 | . . 33 . 33 . Shots Fired 10 | . . 4 . 6 . Gun . | . . . . . . Cannon . | . . . . . . Launcher 10 | . . 4 . 6 . Special . | . . . . . . Kinetic . | . . . . . . Thermal . | . . . . . . Explosive 10 | . . 4 . 6 . Electromagnetic . | . . . . . . Robot Hit Streak 7 | . . 4 . 7 . Robot Miss Streak 1 | . . . . 1 . Penetration Max . | . . . . . . Secondary Targets . | . . . . . . Shots Hit Robots 9 | . . 4 . 5 . Core Hits 10 | . . 5 . 5 . Critical Kills . | . . . . . . Critical Parts Destroyed . | . . . . . . Critical Strikes . | . . . . . . Melee Attacks . | . . . . . . Impact . | . . . . . . Slashing . | . . . . . . Piercing . | . . . . . . Sneak Attacks . | . . . . . . Combat Hostiles . | . . . . . . Follow-up Attacks . | . . . . . . Damage Inflicted 907 | . . 379 . 528 . Guns . | . . . . . . Cannons . | . . . . . . Explosions 898 | . . 370 . 528 . Melee . | . . . . . . Ramming 9 | . . 9 . . . Kinetic . | . . . . . . Thermal . | . . . . . . Explosive 898 | . . 370 . 528 . Electromagnetic . | . . . . . . Impact . | . . . . . . Slashing . | . . . . . . Piercing . | . . . . . . Highest Corruption . | . . . . . . Average Corruption . | . . . . . . Corruption Purged . | . . . . . . Corruption Blocked . | . . . . . . Overload Shots . | . . . . . . Overflow Damage 100 | . . 43 . 57 . Projectiles . | . . . . . . Explosions 100 | . . 43 . 57 . Melee . | . . . . . . Knockbacks . | . . . . . . Impact . | . . . . . . Kinetic . | . . . . . . Secondary . | . . . . . . Self-Inflicted Damage 40 | . . 15 . 25 . Shots 2 | . . 1 . 1 . Rammed 2 | . . 2 . . . Targets Rammed 2 | . . 2 . . . Kicked . | . . . . . . Crushed . | . . . . . . Highest Temperature . | . . . . . . Average Temperature . | . . . . . . Received Heat Transfer 27 | . . 9 18 . . Siege Activations . | . . . . . . Martial Activations . | . . . . . . Shielding Activations . | . . . . . . Robots Disrupted . | . . . . . . Combat Hostiles . | . . . . . . Robots Corrupted . | . . . . . . Combat Hostiles . | . . . . . . Parts Fried . | . . . . . . Impact Corruptions . | . . . . . . Robots Melted . | . . . . . . Combat Hostiles . | . . . . . . Parts Melted . | . . . . . . Heat Transferred . | . . . . . . Parts Sabotaged . | . . . . . . Parts Stolen . | . . . . . . Parts Stripped . | . . . . . . Power Chain Reactions . | . . . . . . Alert | -11 -10 -10 -9 -9 -9 ------- Run | Yrd Mat Min Mat Min Exi Maximum Alert Level 1 | . . . . 1 . Low Security (%) 70 | 100 100 100 100 34 . Level 1 29 | . . . . 65 . Level 2 . | . . . . . . Level 3 . | . . . . . . Level 4 . | . . . . . . Level 5 . | . . . . . . High Security . | . . . . . . Max Security . | . . . . . . Peak Influence 281 | . . 151 65 281 . Initial 46 | . . . 46 21 . Average 115 | . . 65 47 212 . Influence Increases 500 | . . 181 29 290 . Destroy 0b10 Robot/C 280 | . . 100 . 180 . Destroy Leader 50 | . . 20 . 30 . Successful Hack 14 | . . . 14 . . Disable Machine 18 | . . . . 18 . Destroy Structure 93 | . . 31 . 62 . Partial Spotted 15 | . . . 15 . . Lose Combat Pursuer 30 | . . 30 . . . Influence Decreases 500 | . . 40 105 114 241 Entered New Map 380 | . . . 95 44 241 Time Decay 120 | . . 40 10 70 . Squads Dispatched . | . . . . . . Investigation . | . . . . . . Extermination . | . . . . . . Reinforcement . | . . . . . . Assault . | . . . . . . Garrison . | . . . . . . Intercept . | . . . . . . Searches Triggered . | . . . . . . Construction Impeded . | . . . . . . Haulers Reinforced . | . . . . . . Active Scanning Responses . | . . . . . . Cargo Convoy Interrupts . | . . . . . . Stealth | -11 -10 -10 -9 -9 -9 --------- Run | Yrd Mat Min Mat Min Exi Distress Signals . | . . . . . . Communications Jammed . | . . . . . . Distress Signals . | . . . . . . Times Spotted 24 | . . 8 7 9 . Peak Tracking Total 7 | . . 3 7 3 . Tactical Retreats 1 | . . 1 . . . Traps | -11 -10 -10 -9 -9 -9 ------- Run | Yrd Mat Min Mat Min Exi Traps Triggered . | . . . . . . Indirectly . | . . . . . . Trap Hack Attempts . | . . . . . . Triggered . | . . . . . . Disarmed . | . . . . . . Reprogrammed . | . . . . . . Reused . | . . . . . . Traps Extracted . | . . . . . . Installed . | . . . . . . Triggered . | . . . . . . Machines | -11 -10 -10 -9 -9 -9 ---------- Run | Yrd Mat Min Mat Min Exi Machines Disabled 2 | . . . . 2 . Max in Single Turn 2 | . . . . 2 . Machines Repaired . | . . . . . . Machines Dismantled . | . . . . . . Machines Sabotaged . | . . . . . . Overloaded Fab Kills . | . . . . . . Hacking | -11 -10 -10 -9 -9 -9 --------- Run | Yrd Mat Min Mat Min Exi Machines Accessed 2 | . . . 1 1 . Terminals 1 | . . . 1 . . Fabricators . | . . . . . . Repair Stations . | . . . . . . Recycling Units . | . . . . . . Scanalyzers . | . . . . . . Garrison Access . | . . . . . . Total Hacks 2 | . . . 1 1 . Successful 2 | . . . 1 1 . Failed . | . . . . . . Catastrophic . | . . . . . . Database Lockouts . | . . . . . . Manual . | . . . . . . Terminals 1 | . . . 1 . . Fabricators . | . . . . . . Repair Stations . | . . . . . . Recycling Units . | . . . . . . Scanalyzers . | . . . . . . Garrison Access . | . . . . . . Terminal Hacks 2 | . . . 1 1 . Open Door 1 | . . . . 1 . Branch Access Points 1 | . . . 1 . . Fabricator Hacks . | . . . . . . Repair Station Hacks . | . . . . . . Recycling Unit Hacks . | . . . . . . Scanalyzer . | . . . . . . Garrison Access Hacks . | . . . . . . Unauthorized Hacks . | . . . . . . Terminals . | . . . . . . Fabricators . | . . . . . . Repair Stations . | . . . . . . Recycling Units . | . . . . . . Scanalyzers . | . . . . . . Garrison Access . | . . . . . . Data Cores Recovered . | . . . . . . Used . | . . . . . . Hacking Detections . | . . . . . . Full Trace Events . | . . . . . . Feedback Events . | . . . . . . Feedback Blocked . | . . . . . . Robot Schematics Acquired . | . . . . . . Robots Built . | . . . . . . Authchips . | . . . . . . Time . | . . . . . . Total Robot Build Rating . | . . . . . . Part Schematics Acquired . | . . . . . . Parts Built . | . . . . . . Authchips . | . . . . . . Time . | . . . . . . Total Part Build Rating . | . . . . . . Parts Repaired . | . . . . . . Time . | . . . . . . Parts Recycled . | . . . . . . Recycled Matter . | . . . . . . Retrieved Matter . | . . . . . . Retrieved Components . | . . . . . . Parts Scanalyzed . | . . . . . . Part Schematics Acquired . | . . . . . . Parts Damaged . | . . . . . . Bothacking | -11 -10 -10 -9 -9 -9 ------------ Run | Yrd Mat Min Mat Min Exi Used RIF Installer . | . . . . . . Robots Hacked . | . . . . . . Non-combat . | . . . . . . Combat . | . . . . . . Robot Hacks Applied . | . . . . . . Relay Couplers Released . | . . . . . . Fabnet Peak Effective % . | . . . . . . Robots Rewired . | . . . . . . Allies Hacked . | . . . . . . Hacks Repelled . | . . . . . . Allies | -11 -10 -10 -9 -9 -9 -------- Run | Yrd Mat Min Mat Min Exi Total Allies 1 | . . 1 . . . Largest Group 1 | . . 1 1 . . Highest-Rated Group 31 | . . 31 31 . . Highest-Rated Ally 31 | . . 31 31 . . Total Orders . | . . . . . . Ally Attacks . | . . . . . . Total Damage . | . . . . . . Kills . | . . . . . . Allies Corrupted . | . . . . . . Allies Melted . | . . . . . . Intel | -11 -10 -10 -9 -9 -9 ------- Run | Yrd Mat Min Mat Min Exi Active Infowar (turns) . | . . . . . . Robot Analysis Total . | . . . . . . Derelict Logs Recovered 1 | . . . . 1 . Drone Launches . | . . . . . . Drone Recoveries . | . . . . . . Exploration | -11 -10 -10 -9 -9 -9 ------------- Run | Yrd Mat Min Mat Min Exi Turns Passed 334 | 31 32 80 36 141 14 Spaces Moved 723 | 62 64 135 97 324 41 Core 186 | 62 64 60 . . . Treads . | . . . . . . Legs . | . . . . . . Wheels . | . . . . . . Hover . | . . . . . . Flight 537 | . . 75 97 324 41 Fastest Speed 34 | 50 50 37 34 34 34 Average Speed 38 | 50 50 42 34 34 34 Slowest Speed 50 | 50 50 50 37 34 34 Overloaded Moves . | . . . . . . Propulsion Burnouts . | . . . . . . Robots Hopped 12 | . . 3 1 8 . Potential Cave-ins . | . . . . . . Cave-ins Triggered . | . . . . . . Exploration Rate (%) 26 | 4 19 22 18 79 16 Regions Visited 5 Branch Regions 3 Pre-discovered Areas . | . . . . . . Known Exits Taken 1 | . . . 1 . . Unknown Exits Taken 4 | 1 1 1 . 1 . Scrap Searched 1 | . . . . 1 . Spaces Dug . | . . . . . . Terrain Destroyed 132 | . . 49 . 83 . Melee . | . . . . . . Projectile . | . . . . . . AOE 132 | . . 49 . 83 . Terrain Rammed . | . . . . . . Walls Destroyed . | . . . . . . Machines Disabled . | . . . . . . Actions | -11 -10 -10 -9 -9 -9 --------- Run | Yrd Mat Min Mat Min Exi Total 751 | 61 63 148 97 341 41 Wait 18 | . . 5 . 13 . Move 697 | 61 63 130 94 308 41 Hop 9 | . . 1 1 7 . Pick Up 2 | . . 1 . 1 . Fast Attach 4 | . . 3 1 . . Attach 4 | . . 1 . 3 . Detach 5 | . . 1 1 3 . Swap . | . . . . . . Drop . | . . . . . . Fire 10 | . . 4 . 6 . Melee . | . . . . . . Ram 2 | . . 2 . . . Kick . | . . . . . . Crush . | . . . . . . Escape Stasis . | . . . . . . Rewire . | . . . . . . Trap . | . . . . . . Miscellaneous . | . . . . . . Route ------- -11/Scrapyard -10/Materials -10/Mines -9/Materials (discovered 4 exits: *Min x2 / Sto x2) -9/Mines (discovered 3 exits: [*Mat] / [*Exi] / [*Zio]) -9/Exiles History --------- Turn | Location | Event 6 | -11/Scrapyard | Discovered new exit (range 12) 32 | -11/Scrapyard | Entered Materials 57 | -10/Materials | Discovered new exit (range 15) 64 | -10/Materials | Entered Mines 79 | -10/Mines | Received a Rocket Launcher from a helpful Derelict 131 | -10/Mines | Discovered new exit (range 10) 134 | -10/Mines | Escorted by a lone wolf Derelict 144 | -10/Mines | Entered Materials 144 | -9/Materials | Accompanied by 1 ally 144 | -9/Materials | Evolved 2 slots: Propulsion x1, Utility x1 166 | -9/Materials | Identified exit to Mines 166 | -9/Materials | Identified exit to Storage 180 | -9/Materials | Entered Mines 185 | -9/Mines | Discovered new exit (range 13) 197 | -9/Mines | Found the Drone Emporium 259 | -9/Mines | Learned Materials emergency access door positions 301 | -9/Mines | Build established: Mutant 313 | -9/Mines | A Derelict revealed a hidden shortcut to a safe place 319 | -9/Mines | Deemed a non-threat by the Exiles lab entrance 319 | -9/Mines | Discovered new exit (range 5) 321 | -9/Mines | Entered Exiles 321 | -9/Exiles | Found Exiles lab abandoned 335 | -9/Exiles | Self-destructed Last Messages --------------- S-10 Pest destroyed. Plasma Injector explodes. Acquired 6 matter. S-10 Pest destroyed. Destroyed Flight Unit. S-10 Pest destroyed. Destroyed Flight Unit. S-10 Pest destroyed. K-01 Serf collects debris. U-05 Engineer builds a Wall. Acquired derelict log, extracted data. Data stored: Materials emergency access points. T-07 Excavator is excavating. A derelict emerges from the shadows: "It's not safe here! Let me show you to a place where you won't have to worry about staying in one piece!" F5-R1A(z) disappears into a concealed tunnel. "No threat detected, you may enter." EXIT=FOUND LOCATION=UNKNOWN GOAL=ESCAPE Map ----- +----------------------------------------------------+ | ?????????????????????????????????????????????????? | | ?????????????????????????????????????????????????? | | ?????????????????????????????????????????????????? | | ?????????????????????????????????????????????????? | | ?????????????????????????????????????????????????? | | ?????????????????????????????????????????????????? | | ?????????????????????????????????????????????????? | | ?????????????????????????????????????????????????? | | ?????????????????????????????????????????????????? | | ?????????????????????????????????????????????????? | | ?????????????????????????????????????????????????? | | ?????????????????????????????????????????????????? | | ?????????????????????????????????????????????????? | | ?????????????????????????????????????????????????? | | ?????????????????????????????????????????????????? | | ?????????????? "??????????????#####?????????????? | | ????????????? " "???????????##" #?????????????? | | ????????????? ""??????????#" #?????????????# | | ???????????? ""????????##" ##????????????# | | ???????????? "?????### ###????????### | | ???????????? #????# ########## | | ??????????? #??## #""""## | | ??????????? ### * | | ?????????? ## * | | ?????????? #### | | ?????????? @ ""#?#"""""#### | | ?????????? #"""##?#######??#### | | ?????????? ######??????????????##### | | ??????????? #????????????????????????# | | ???????????" #?????????????????????????? | | ????????????"" ""??????????????????????????? | | ?????????????" "???????????????????????????? | | ?????????????#"""""""#???????????????????????????? | | ??????????????######?????????????????????????????? | | ?????????????????????????????????????????????????? | | ?????????????????????????????????????????????????? | | ?????????????????????????????????????????????????? | | ?????????????????????????????????????????????????? | | ?????????????????????????????????????????????????? | | ?????????????????????????????????????????????????? | | ?????????????????????????????????????????????????? | | ?????????????????????????????????????????????????? | | ?????????????????????????????????????????????????? | | ?????????????????????????????????????????????????? | | ?????????????????????????????????????????????????? | | ?????????????????????????????????????????????????? | | ?????????????????????????????????????????????????? | | ?????????????????????????????????????????????????? | | ?????????????????????????????????????????????????? | | ?????????????????????????????????????????????????? | +----------------------------------------------------+ Best States ------------- Heat Dissipation 28 Energy Generation 5 Energy Capacity 100 Matter Stores 290 Matter Capacity 300 Sight Range 16 Terrain Scan Density 10 Resistance: KI 20 Resistance: TH 20 Resistance: EX 20 Resistance: EM 20 Resistance: I 20 Resistance: S 20 Resistance: P 20 Evasion (%) 63 Offensive Hacking 10 Item Schematics ----------------- None Robot Schematics ------------------ None Fabricated ------------ Nothing Repaired ---------- Nothing Alien Tech Used ----------------- None Achievements -------------- None Challenges ------------ None Game ------ Seed TiamatBlanketNullifier Manual? 0 Play Time 00:05:09 Cumulative 123.9 hours Start 2025.05.12 @ 21:07:04 End 2025.05.12 @ 21:12:38 Sessions 1 Manual Loads 0 Difficulty Adventurer Special Mode None Game No. 139 Rogue 18 Adventurer 110 Explorer 11 Win Type - Total 27 Types 8/0/11/0/3/0/4/1/0/0 Lore% 38 Gallery% 41 Achievement% 63 Wizard Run 0 Options --------- Layout 0 ASCII 0 Keyboard 0 Movement Numpad Keybinds 0 Fullscreen 2 Font 12/Smallcaps Map View 83x54 Zoom Use 0% Tactical HUD 0 Map Filters NONE Filters NONE Steam 1 RUN: 308bef1a-cd9c-4402-972d-81a7e8d0caa0